bitfinex/quotes_BTCUSD_20250326
["timestamp","ask_amount","ask_price","bid_price","bid_amount"]
[1742999640724,0.81328994,86895.0,86894.0,0.0003382]
[1742999640898,0.7942545,86895.0,86894.0,0.0003382]
[1742999641122,0.7932545,86895.0,86894.0,0.0003382]
[1742999641320,0.7982545,86895.0,86894.0,0.0003382]
[1742999641961,0.8032545,86895.0,86894.0,0.0003382]
[1742999642168,1.30325735,86895.0,86894.0,0.0003382]
[1742999642503,1.80676535,86895.0,86894.0,0.0003382]
[1742999642711,1.59825563,86895.0,86894.0,0.0003382]
[1742999642911,1.46125563,86895.0,86894.0,0.0003382]
[1742999643126,1.9305545,86895.0,86894.0,0.0003382]
[1742999643250,1.4392545,86895.0,86894.0,0.0003382]
[1742999643653,1.48695563,86895.0,86894.0,0.0003382]
[1742999643857,1.48395563,86895.0,86894.0,0.0003382]
[1742999644293,1.48695563,86895.0,86894.0,0.0003382]
[1742999644529,1.45735163,86895.0,86894.0,0.0003382]
[1742999644768,1.44835163,86895.0,86894.0,0.0003382]
[1742999645170,1.45735163,86895.0,86894.0,0.0003382]
[1742999645416,1.42419135,86895.0,86894.0,0.0003382]
[1742999645785,1.45735163,86895.0,86894.0,0.0003382]
[1742999646412,1.67047935,86895.0,86894.0,0.0003382]
[1742999646633,1.70363963,86895.0,86894.0,0.0003382]
[1742999647099,1.66547935,86895.0,86894.0,0.0003382]
[1742999647296,2.11023963,86895.0,86894.0,0.0003382]
[1742999647529,2.07807935,86895.0,86894.0,0.0003382]
[1742999647762,2.08307935,86895.0,86894.0,0.0003382]
[1742999648055,1.84140935,86895.0,86894.0,0.0003382]
[1742999648290,1.85291735,86895.0,86894.0,0.0003382]
[1742999648513,1.84791735,86895.0,86894.0,0.0003382]
[1742999648712,1.84291735,86895.0,86894.0,0.0003382]
[1742999648944,1.84791735,86895.0,86894.0,0.0003382]
[1742999649169,1.85291735,86895.0,86894.0,0.0003382]
[1742999649605,1.84140935,86895.0,86894.0,0.0003382]
[1742999650024,1.85291735,86895.0,86894.0,0.0003382]
[1742999650969,1.87095722,86895.0,86894.0,0.0003382]
[1742999651426,4.1076175,86895.0,86894.0,0.0003382]
[1742999651621,4.30461922,86895.0,86894.0,0.0003382]
[1742999652438,4.31977361,86895.0,86894.0,0.0003382]
[1742999653301,4.28657935,86895.0,86894.0,0.0003382]
[1742999653490,4.18493135,86895.0,86894.0,0.0003382]
[1742999653707,9.21812561,86895.0,86894.0,0.0003382]
[1742999654375,9.21812561,86895.0,86862.0,0.0003382]
[1742999654376,0.43623085,86888.0,86862.0,0.0003382]
[1742999654588,5.69972511,86888.0,86862.0,0.0003382]
[1742999654738,5.73074858,86888.0,86862.0,0.0003382]
[1742999655539,5.83271769,86888.0,86862.0,0.0003382]
[1742999655787,0.39454085,86879.0,86862.0,0.0003382]
[1742999655999,5.54518085,86879.0,86862.0,0.0003382]
[1742999656199,5.60939858,86879.0,86862.0,0.0003382]
[1742999656557,5.57837511,86879.0,86862.0,0.0003382]
[1742999656772,5.5964177,86879.0,86862.0,0.0003382]
[1742999656960,5.5964177,86879.0,86878.0,0.00038613]
[1742999657147,5.91054944,86879.0,86878.0,0.00038613]
[1742999657662,5.68934444,86879.0,86878.0,0.00038613]
[1742999657862,4.18530068,86879.0,86878.0,0.00038613]
[1742999658065,4.12237644,86879.0,86878.0,0.00038613]
[1742999658706,4.62483559,86879.0,86878.0,0.00038613]
[1742999658842,4.54453779,86879.0,86878.0,0.00038613]
[1742999659486,4.85907864,86879.0,86878.0,0.00038613]
[1742999660241,4.78164759,86879.0,86878.0,0.00038613]
[1742999660934,5.40013759,86879.0,86878.0,0.00038613]
[1742999661312,5.18048059,86879.0,86878.0,0.00038613]
[1742999661922,5.162438,86879.0,86878.0,0.00038613]
[1742999662127,4.907423,86879.0,86878.0,0.00038613]
[1742999662332,3.258073,86879.0,86878.0,0.00038613]
[1742999663512,3.258033,86879.0,86878.0,0.00038613]
[1742999664092,2.511219,86879.0,86878.0,0.00038613]
[1742999664737,4.686523,86879.0,86878.0,0.00038613]
[1742999664946,4.94931092,86879.0,86878.0,0.00038613]
[1742999665146,4.96082092,86879.0,86878.0,0.00038613]
[1742999665355,4.71910592,86879.0,86878.0,0.00038613]
[1742999665741,4.96082092,86879.0,86878.0,0.00038613]
[1742999666145,5.01216844,86879.0,86878.0,0.00038613]
[1742999666741,5.02367844,86879.0,86878.0,0.00038613]
[1742999667161,4.78196344,86879.0,86878.0,0.00038613]
[1742999667597,5.01216844,86879.0,86878.0,0.00038613]
[1742999667826,4.78196344,86879.0,86878.0,0.00038613]
[1742999669450,5.01216844,86879.0,86878.0,0.00038613]
[1742999669775,5.19356344,86879.0,86878.0,0.00038613]
[1742999670295,5.42376844,86879.0,86878.0,0.00038613]
[1742999670498,4.95054834,86879.0,86878.0,0.00038613]
[1742999670708,4.70883334,86879.0,86878.0,0.00038613]
[1742999671108,4.93903834,86879.0,86878.0,0.00038613]
[1742999671351,5.46754834,86879.0,86878.0,0.00038613]
[1742999671504,5.5500426,86879.0,86878.0,0.00038613]
[1742999671929,5.6328426,86879.0,86878.0,0.00038613]
[1742999672283,5.61480053,86879.0,86878.0,0.00038613]
[1742999672447,5.58160627,86879.0,86878.0,0.00038613]
[1742999672864,5.57660627,86879.0,86878.0,0.00038613]
[1742999673311,5.57656627,86879.0,86878.0,0.00038613]
[1742999674187,5.57756627,86879.0,86878.0,0.00038613]
[1742999674401,5.58256627,86879.0,86878.0,0.00038613]
[1742999674553,5.57756627,86879.0,86878.0,0.00038613]
[1742999674755,5.18029127,86879.0,86878.0,0.00038613]
[1742999675068,5.36725055,86879.0,86878.0,0.00038613]
[1742999675268,5.51781055,86879.0,86878.0,0.00038613]
[1742999675483,5.51781055,86879.0,86821.0,0.59832]
[1742999675484,0.896845,86832.0,86807.0,0.0003382]
[1742999675801,6.39194875,86832.0,86807.0,0.0003382]
[1742999676002,6.25912343,86832.0,86807.0,0.0003382]
[1742999676405,6.27717598,86832.0,86808.0,0.0815]
[1742999676610,6.1796723,86832.0,86808.0,0.0815]
[1742999676807,6.1842943,86832.0,86808.0,0.0815]
[1742999677022,6.0851466,86832.0,86808.0,0.0815]
[1742999677204,6.3472226,86832.0,86808.0,0.0815]
[1742999677406,6.1851466,86832.0,86808.0,0.0815]
[1742999677582,6.3407066,86832.0,86808.0,0.0815]
[1742999677766,6.3572226,86832.0,86808.0,0.0815]
[1742999677970,6.3407066,86832.0,86808.0,0.0815]
[1742999678211,6.1851466,86832.0,86808.0,0.0815]
[1742999678460,6.3407066,86832.0,86808.0,0.0815]
[1742999678682,5.61900575,86832.0,86808.0,0.0815]
[1742999678956,2.46914985,86832.0,86808.0,0.0815]
[1742999679167,1.8168116,86832.0,86807.0,0.0003382]
[1742999679316,1.8168116,86832.0,86831.0,0.084]
[1742999679728,1.68445308,86832.0,86831.0,0.084]
[1742999679927,1.67158008,86832.0,86831.0,0.084]
[1742999680131,1.52098008,86832.0,86831.0,0.084]
[1742999680339,1.66658008,86832.0,86831.0,0.084]
[1742999680541,1.71288008,86832.0,86829.0,4e-07]
[1742999680784,1.71288008,86832.0,86807.0,0.0003382]
[1742999680785,0.68,86816.0,86807.0,0.0003382]
[1742999680948,3.218665,86816.0,86807.0,0.0003382]
[1742999681153,2.87529185,86816.0,86807.0,0.0003382]
[1742999681332,2.066997,86816.0,86807.0,0.0003382]
[1742999681518,2.20769492,86816.0,86807.0,0.0003382]
[1742999681718,2.24069544,86816.0,86807.0,0.0003382]
[1742999681972,2.18309852,86816.0,86807.0,0.0003382]
[1742999682184,2.21309852,86816.0,86808.0,0.0802]
[1742999682384,2.24154381,86816.0,86808.0,0.0802]
[1742999682600,2.06094381,86816.0,86808.0,0.0802]
[1742999682802,2.69808629,86816.0,86808.0,0.0802]
[1742999682978,1.69868629,86816.0,86808.0,0.0802]
[1742999683191,0.37904529,86816.0,86809.0,0.5987693]
[1742999683389,0.27904529,86816.0,86809.0,0.5987693]
[1742999683556,0.27404529,86816.0,86809.0,0.5987693]
[1742999683867,0.27904529,86816.0,86809.0,0.5987693]
[1742999684281,0.12844529,86816.0,86809.0,0.5987693]
[1742999684480,0.27661878,86816.0,86809.0,0.5987693]
[1742999684682,0.57445129,86816.0,86809.0,0.5987693]
[1742999684882,0.89650504,86816.0,86809.0,0.5987693]
[1742999685082,0.79638604,86816.0,86809.0,0.5987693]
[1742999685495,0.80038604,86816.0,86809.0,0.5987693]
[1742999686124,0.59609904,86816.0,86809.0,0.5987693]
[1742999686483,0.60109904,86816.0,86809.0,0.5987693]
[1742999686737,0.59709904,86816.0,86809.0,0.5987693]
[1742999687343,0.57365375,86816.0,86809.0,0.5987693]
[1742999687532,0.57865375,86816.0,86809.0,0.5987693]
[1742999688215,0.57365375,86816.0,86809.0,0.5987693]
[1742999688745,0.57765375,86816.0,86809.0,0.5987693]
[1742999688950,0.79480775,86816.0,86809.0,0.5987693]
[1742999689195,0.79080775,86816.0,86809.0,0.5987693]
[1742999690222,0.79980775,86816.0,86809.0,0.5987693]
[1742999691263,0.69980775,86816.0,86809.0,0.5987693]
[1742999691468,0.69480775,86816.0,86809.0,0.5987693]
[1742999691672,0.69080775,86816.0,86809.0,0.5987693]
[1742999691872,0.69980775,86816.0,86809.0,0.5987693]
[1742999692509,0.5637486,86816.0,86809.0,0.5987693]
[1742999692719,1.23600126,86816.0,86809.0,0.5987693]
[1742999692922,0.99411126,86816.0,86809.0,0.5987693]
[1742999693524,1.00562926,86816.0,86809.0,0.5987693]
[1742999693689,0.99411126,86816.0,86809.0,0.5987693]
[1742999694096,1.22448326,86816.0,86809.0,0.5987693]
[1742999694455,0.77695726,86816.0,86809.0,0.5987693]
[1742999694661,0.60681641,86816.0,86809.0,0.5987693]
[1742999694881,1.32252841,86816.0,86809.0,0.5987693]
[1742999695300,1.32752841,86816.0,86809.0,0.5987693]
[1742999695709,1.17796413,86816.0,86809.0,0.5987693]
[1742999695912,1.21262813,86816.0,86809.0,0.5987693]
[1742999696062,1.49962813,86816.0,86809.0,0.5987693]
[1742999696262,1.34902813,86816.0,86809.0,0.5987693]
[1742999696511,1.49958813,86816.0,86809.0,0.5987693]
[1742999697295,1.32621172,86816.0,86809.0,0.5987693]
[1742999697467,1.47677172,86816.0,86809.0,0.5987693]
[1742999697810,1.47177172,86816.0,86809.0,0.5987693]
[1742999698073,1.32121172,86816.0,86809.0,0.5987693]
[1742999698278,1.47177172,86816.0,86809.0,0.5987693]
[1742999698864,0.31405472,86816.0,86815.0,0.0793386]
[1742999699270,0.45461472,86816.0,86815.0,0.0793386]
[1742999699474,0.30405472,86816.0,86815.0,0.0793386]
[1742999699654,0.30405472,86816.0,86815.0,0.1251386]
[1742999699858,0.45461472,86816.0,86815.0,0.1251386]
[1742999700067,0.75461472,86816.0,86815.0,0.1251386]
[1742999700267,0.75761472,86816.0,86815.0,0.1251386]
[1742999700493,0.45961472,86816.0,86815.0,0.1251386]
[1742999700672,0.30961472,86816.0,86815.0,0.1251386]
[1742999700930,0.30661472,86816.0,86815.0,0.1251386]
[1742999701697,0.60761472,86816.0,86815.0,0.1251386]
[1742999701920,0.3,86815.0,86809.0,0.2242465]
[1742999702692,0.3,86815.0,86810.0,0.230388]
[1742999702890,0.3,86815.0,86809.0,0.2242465]
[1742999703120,0.32758295,86816.0,86809.0,0.2242465]
[1742999703330,0.32758295,86816.0,86809.0,0.2252465]
[1742999703506,0.32758295,86816.0,86809.0,0.2242465]
[1742999703723,0.04002295,86816.0,86815.0,0.230374]
[1742999703925,0.04002295,86816.0,86815.0,0.241892]
[1742999704320,0.04002295,86816.0,86815.0,0.230374]
[1742999704957,0.04002295,86816.0,86815.0,0.360474]
[1742999705147,0.04002295,86816.0,86815.0,0.362474]
[1742999705487,0.04002295,86816.0,86815.0,0.373992]
[1742999705687,0.04002295,86816.0,86815.0,0.375992]
[1742999706411,0.04002295,86816.0,86815.0,0.1341]
[1742999706591,0.04002295,86816.0,86815.0,0.0857]
[1742999707261,0.01705472,86816.0,86815.0,0.0857]
[1742999707452,0.46757472,86816.0,86815.0,0.0857]
[1742999707599,0.46757472,86816.0,86815.0,0.004]
[1742999707996,0.46791372,86816.0,86815.0,0.004]
[1742999708837,0.85491372,86816.0,86815.0,0.004]
[1742999709361,1.74070772,86816.0,86815.0,0.004]
[1742999709519,1.70893372,86816.0,86815.0,0.004]
[1742999709720,1.42565472,86816.0,86815.0,0.002]
[1742999709921,0.1,86810.0,86809.0,0.224416]
[1742999710325,1.107399,86810.0,86809.0,0.224416]
[1742999710524,1.327748,86810.0,86809.0,0.0001695]
[1742999710734,1.455186,86810.0,86809.0,0.0001695]
[1742999711149,1.635186,86810.0,86809.0,0.0001695]
[1742999711362,2.35885764,86810.0,86809.0,0.0001695]
[1742999711568,2.32402702,86810.0,86809.0,0.0001695]
[1742999712222,2.41654602,86810.0,86809.0,0.0011695]
[1742999712486,2.45137664,86810.0,86809.0,0.0001695]
[1742999713016,2.60585664,86810.0,86809.0,0.0001695]
[1742999713188,2.60185664,86810.0,86809.0,0.0001695]
[1742999713783,2.60585664,86810.0,86809.0,0.0011695]
[1742999714381,2.60585664,86810.0,86807.0,0.0003382]
[1742999714382,0.571912,86808.0,86807.0,0.0003382]
[1742999714585,0.571912,86808.0,86766.0,0.59868]
[1742999714586,0.921956,86792.0,86766.0,0.59868]
[1742999714777,7.24553865,86792.0,86766.0,0.59868]
[1742999714924,7.27785082,86792.0,86766.0,0.59868]
[1742999715743,7.28185082,86792.0,86766.0,0.59868]
[1742999715943,7.29991169,86792.0,86791.0,0.00075067]
[1742999716129,7.39683337,86792.0,86791.0,0.00075067]
[1742999716337,6.18117637,86792.0,86791.0,0.00075067]
[1742999716587,5.94782337,86792.0,86791.0,0.00075067]
[1742999716758,5.94382337,86792.0,86791.0,0.00075067]
[1742999716943,5.94882337,86792.0,86791.0,0.00075067]
[1742999717356,5.94882337,86792.0,86744.0,0.0001694]
[1742999717357,0.69454085,86780.0,86744.0,0.0001694]
[1742999717604,0.95732002,86780.0,86779.0,0.00046208]
[1742999717804,5.19589385,86780.0,86779.0,0.00046208]
[1742999718007,5.26298805,86780.0,86779.0,0.00046208]
[1742999718208,5.28105205,86780.0,86779.0,0.00046208]
[1742999718514,5.24622143,86780.0,86779.0,0.00046208]
[1742999718687,5.25122143,86780.0,86779.0,0.00046208]
[1742999719066,5.40170143,86780.0,86779.0,0.00046208]
[1742999719270,5.88643785,86780.0,86779.0,0.00046208]
[1742999719453,5.89043785,86780.0,86779.0,0.00046208]
[1742999720006,5.78545785,86780.0,86779.0,0.00046208]
[1742999720206,6.00199427,86780.0,86779.0,0.00046208]
[1742999720441,5.97476847,86780.0,86779.0,0.00046208]
[1742999720614,5.67197165,86780.0,86779.0,0.00046208]
[1742999720837,5.61142365,86780.0,86779.0,0.00046208]
[1742999721042,5.05035565,86780.0,86779.0,0.00046208]
[1742999721244,4.93826565,86780.0,86779.0,0.00046208]
[1742999721395,4.67127565,86780.0,86779.0,0.00046208]
[1742999721577,4.52051165,86780.0,86779.0,0.00046208]
[1742999721778,5.8074908,86780.0,86779.0,0.00046208]
[1742999721984,5.83817965,86780.0,86779.0,0.00046208]
[1742999722200,5.8236388,86780.0,86779.0,0.00046208]
[1742999722604,5.7940518,86780.0,86779.0,0.00046208]
[1742999722858,5.80859265,86780.0,86779.0,0.00046208]
[1742999723008,5.82011565,86780.0,86779.0,0.00046208]
[1742999723188,5.81511565,86780.0,86779.0,0.00046208]
[1742999723593,5.81611565,86780.0,86779.0,0.00046208]
[1742999724018,5.66959565,86780.0,86779.0,0.00046208]
[1742999724241,5.82007565,86780.0,86779.0,0.00046208]
[1742999724613,5.85222995,86780.0,86779.0,0.00046208]
[1742999725420,5.82007565,86780.0,86779.0,0.00046208]
[1742999725787,5.83814077,86780.0,86779.0,0.00046208]
[1742999726173,5.76753277,86780.0,86779.0,0.0004138]
[1742999726412,5.97445577,86780.0,86779.0,0.0004138]
[1742999726621,5.96945577,86780.0,86779.0,0.0004138]
[1742999726978,5.97445577,86780.0,86779.0,0.0004138]
[1742999727178,5.97845577,86780.0,86779.0,0.0004138]
[1742999730338,5.49694492,86780.0,86779.0,0.0004138]
[1742999730554,2.52756592,86780.0,86779.0,0.0004138]
[1742999730755,0.91425012,86780.0,86779.0,0.0004138]
[1742999730920,0.56454512,86780.0,86779.0,0.0004138]
[1742999731105,0.56454512,86780.0,86779.0,0.0824138]
[1742999731367,0.55954512,86780.0,86779.0,0.0824138]
[1742999731845,0.85954512,86780.0,86779.0,0.0824138]
[1742999732081,0.70906512,86780.0,86779.0,0.0824138]
[1742999732468,0.58552155,86780.0,86779.0,0.0824138]
[1742999732643,0.56345643,86780.0,86779.0,0.0824138]
[1742999732844,0.56345643,86780.0,86779.0,0.0004138]
[1742999733043,0.86645643,86780.0,86779.0,0.0004138]
[1742999733350,0.86345643,86780.0,86779.0,0.0004138]
[1742999733498,0.84148,86780.0,86779.0,0.0004138]
[1742999733707,0.83848,86780.0,86779.0,0.0004138]
[1742999733914,1.03069,86780.0,86779.0,0.0004138]
[1742999734285,1.03469,86780.0,86779.0,0.0004138]
[1742999734778,1.03369,86780.0,86779.0,0.0004138]
[1742999734914,1.03669,86780.0,86779.0,0.0004138]
[1742999735581,0.79118513,86780.0,86779.0,0.0004138]
[1742999735737,0.66024598,86780.0,86779.0,0.0004138]
[1742999735943,0.81068598,86780.0,86779.0,0.0004138]
[1742999736422,0.80768598,86780.0,86779.0,0.0004138]
[1742999736605,1.7823014,86780.0,86779.0,0.0004138]
[1742999736850,1.76394778,86780.0,86779.0,0.0004138]
[1742999737043,1.75794778,86780.0,86779.0,0.0004138]
[1742999737185,1.99993778,86780.0,86779.0,0.0004138]
[1742999737385,1.96798072,86780.0,86779.0,0.0004138]
[1742999737782,1.73451372,86780.0,86779.0,0.0004138]
[1742999737982,1.73751372,86780.0,86779.0,0.0004138]
[1742999738231,1.74151372,86780.0,86779.0,0.0004138]
[1742999738483,1.98050372,86780.0,86779.0,0.0004138]
[1742999738993,1.97398072,86780.0,86779.0,0.0004138]
[1742999739173,1.74351372,86780.0,86779.0,0.0004138]
[1742999739395,1.59307372,86780.0,86779.0,0.0004138]
[1742999739628,1.77819572,86780.0,86779.0,0.0004138]
[1742999740079,2.00866272,86780.0,86779.0,0.0004138]
[1742999740505,1.77819572,86780.0,86779.0,0.0004138]
[1742999741242,1.66004598,86780.0,86779.0,0.0004138]
[1742999741476,1.93548598,86780.0,86779.0,0.0004138]
[1742999741708,1.05468333,86780.0,86779.0,0.0004138]
[1742999741940,0.915865,86780.0,86779.0,0.0004138]
[1742999742173,1.215865,86780.0,86779.0,0.0004138]
[1742999742378,1.220865,86780.0,86779.0,0.0004138]
[1742999742766,1.24053156,86780.0,86779.0,0.0004138]
[1742999743046,1.09610656,86780.0,86779.0,0.0004138]
[1742999743249,1.10010656,86780.0,86779.0,0.0004138]
[1742999743466,0.57010656,86780.0,86779.0,0.0004138]
[1742999744081,0.86510656,86780.0,86779.0,0.0004138]
[1742999744283,0.41466656,86780.0,86779.0,0.0004138]
[1742999744489,0.46510656,86780.0,86779.0,0.0004138]
[1742999744624,0.76510656,86780.0,86779.0,0.0004138]
[1742999744840,0.47916456,86780.0,86779.0,0.0004138]
[1742999745281,0.78016456,86780.0,86779.0,0.0004138]
[1742999745682,0.48016456,86780.0,86779.0,0.0004138]
[1742999745882,0.78016456,86780.0,86779.0,0.0004138]
[1742999746106,0.78050376,86780.0,86779.0,0.0004138]
[1742999746622,0.55196376,86780.0,86779.0,0.0004138]
[1742999746814,0.10044381,86800.0,86783.0,0.0754]
[1742999746815,0.1504,86795.0,86783.0,0.0754]
[1742999747036,0.01805706,86784.0,86783.0,0.0754]
[1742999747243,0.04117081,86784.0,86783.0,0.0754]
[1742999747448,0.01805706,86784.0,86783.0,0.0754]
[1742999747860,0.01805706,86784.0,86783.0,0.304859]
[1742999748286,0.01805706,86784.0,86783.0,0.0744]
[1742999749229,0.01805706,86784.0,86783.0,0.316381]
[1742999749402,0.100339,86816.0,86791.0,0.241959]
[1742999749651,0.15036,86799.0,86791.0,0.241959]
[1742999749898,0.0003392,86792.0,86791.0,0.241959]
[1742999750161,0.01839317,86792.0,86791.0,0.241959]
[1742999750406,0.01839317,86792.0,86791.0,0.66429985]
[1742999750642,0.01839317,86792.0,86791.0,0.71651006]
[1742999751146,0.01839317,86792.0,86791.0,0.4926]
[1742999751653,0.46875317,86792.0,86791.0,0.4926]
[1742999752592,0.31839317,86792.0,86791.0,0.4926]
[1742999752837,0.31839317,86792.0,86791.0,0.734559]
[1742999752838,0.3003392,86792.0,86791.0,0.734559]
[1742999753638,0.4506992,86792.0,86791.0,0.734559]
[1742999754342,0.4506992,86792.0,86791.0,0.4926]
[1742999754852,0.4506992,86792.0,86791.0,0.4108]
[1742999755730,0.46875351,86792.0,86791.0,0.4108]
[1742999755919,0.48976882,86792.0,86791.0,0.003]
[1742999756361,0.48976882,86792.0,86791.0,0.233438]
[1742999756570,0.48976882,86792.0,86791.0,0.244959]
[1742999756774,0.33940882,86792.0,86791.0,0.244959]
[1742999757725,0.03940882,86792.0,86791.0,0.244959]
[1742999757937,0.03940882,86792.0,86791.0,0.327159]
[1742999758378,0.03940882,86792.0,86791.0,0.34169985]
[1742999758770,0.01839351,86792.0,86791.0,0.34169985]
[1742999759176,0.01839351,86792.0,86791.0,0.327159]
[1742999759670,0.01839351,86792.0,86791.0,0.315638]
[1742999759864,0.01839351,86792.0,86791.0,0.0852]
[1742999760414,0.01839351,86792.0,86791.0,0.003]
[1742999762089,0.03941497,86792.0,86791.0,0.003]
[1742999762608,0.02136066,86792.0,86791.0,0.244959]
[1742999762774,0.02136066,86792.0,86791.0,0.0846]
[1742999762775,0.47164066,86792.0,86791.0,0.0846]
[1742999763227,0.47164066,86792.0,86791.0,0.326559]
[1742999763558,0.17164066,86792.0,86791.0,0.326559]
[1742999763750,0.1506192,86792.0,86791.0,0.34109985]
[1742999764092,0.1,86828.0,86810.0,0.011519]
[1742999764296,0.15028,86815.0,86812.0,0.011519]
[1742999764550,0.15028,86815.0,86811.0,0.59872]
[1742999764753,0.3,86813.0,86811.0,0.59872]
[1742999764899,0.15024,86814.0,86811.0,0.59872]
[1742999765458,0.15065026,86814.0,86811.0,0.59872]
[1742999765705,0.3,86813.0,86811.0,0.59872]
[1742999766252,0.3210371,86813.0,86811.0,0.66740168]
[1742999767092,0.3210371,86813.0,86811.0,0.89778568]
[1742999767292,0.3220371,86813.0,86812.0,0.241901]
[1742999767493,0.45124,86813.0,86812.0,0.649701]
[1742999767674,0.45124,86813.0,86812.0,0.4078]
[1742999767870,0.45124,86813.0,86812.0,0.638182]
[1742999768182,0.45124,86813.0,86812.0,0.4078]
[1742999768183,0.45224,86813.0,86812.0,0.4078]
[1742999768367,0.45124,86813.0,86812.0,0.4078]
[1742999768538,0.45024,86813.0,86812.0,0.638182]
[1742999768735,0.47330473,86813.0,86812.0,0.4078]
[1742999769417,0.47364393,86813.0,86812.0,0.4078]
[1742999770338,0.47364393,86813.0,86811.0,0.59872]
[1742999770743,1.33243949,86812.0,86811.0,0.59872]
[1742999770963,1.33243949,86812.0,86784.0,0.5987696]
[1742999770964,0.1,86796.0,86784.0,0.5987696]
[1742999771172,0.373,86785.0,86784.0,0.5987696]
[1742999771791,0.39105582,86785.0,86784.0,0.5987696]
[1742999772409,0.2232,86785.0,86784.0,0.5987696]
[1742999772620,0.24426473,86785.0,86784.0,0.59889308]
[1742999773506,0.24426473,86785.0,86784.0,0.92614192]
[1742999773715,0.17126473,86785.0,86784.0,1.26321293]
[1742999774339,0.17126473,86785.0,86784.0,1.00669308]
[1742999774569,0.47126473,86785.0,86784.0,0.59889308]
[1742999774773,0.47126473,86785.0,86784.0,0.84087208]
[1742999774982,0.47126473,86785.0,86784.0,0.59889308]
[1742999775561,0.48932052,86785.0,86784.0,0.82935008]
[1742999775782,0.33912052,86785.0,86784.0,0.84487208]
[1742999776104,0.18932052,86785.0,86784.0,1.25267208]
[1742999776317,0.18932052,86785.0,86784.0,1.26321293]
[1742999776755,0.18932052,86785.0,86784.0,1.26721293]
[1742999776967,0.03912052,86785.0,86784.0,1.29162266]
[1742999777181,0.03912052,86785.0,86784.0,1.37072266]
[1742999777587,0.03912052,86785.0,86784.0,1.37372266]
[1742999777795,0.03912052,86785.0,86784.0,1.34931293]
[1742999778001,0.03912052,86785.0,86784.0,1.35031293]
[1742999778417,0.03912052,86785.0,86784.0,1.34931293]
[1742999778620,0.04012052,86785.0,86784.0,1.35031293]
[1742999778835,0.04012052,86785.0,86784.0,1.34731293]
[1742999779019,0.03912052,86785.0,86784.0,1.34631293]
[1742999779171,0.04012052,86785.0,86784.0,1.35031293]
[1742999779387,0.04112052,86785.0,86784.0,1.46557057]
[1742999779589,0.04012052,86785.0,86784.0,1.46157057]
[1742999779862,0.01905579,86785.0,86784.0,1.34731293]
[1742999780076,0.01905579,86785.0,86784.0,1.35131293]
[1742999780077,0.02005579,86785.0,86784.0,1.35131293]
[1742999780496,0.0411726,86785.0,86784.0,1.35131293]
[1742999781828,0.0411726,86785.0,86784.0,1.40301293]
[1742999782004,6e-07,86785.0,86784.0,1.57821595]
[1742999782838,6e-07,86785.0,86784.0,1.57321595]
[1742999783088,0.0010006,86785.0,86784.0,1.57721595]
[1742999783507,0.0010006,86785.0,86784.0,1.54721595]
[1742999783717,0.0010006,86785.0,86784.0,1.38625831]
[1742999783923,0.001,86785.0,86784.0,1.35031293]
[1742999784101,0.001,86785.0,86784.0,1.38131293]
[1742999784844,0.001,86785.0,86784.0,1.27321293]
[1742999786024,0.001,86785.0,86784.0,1.38747057]
[1742999786477,0.1003392,86867.0,86831.0,0.005]
[1742999786683,0.1003392,86867.0,86817.0,0.0759]
[1742999786684,0.15012,86860.0,86845.0,0.011514]
[1742999786900,0.3,86859.0,86847.0,0.011514]
[1742999787100,0.01804398,86854.0,86846.0,0.4078]
[1742999787429,0.01804398,86854.0,86849.0,0.230283]
[1742999787628,0.01804398,86854.0,86846.0,0.63809]
[1742999787861,0.15012,86853.0,86849.0,0.230284]
[1742999788063,0.3,86852.0,86847.0,0.011514]
[1742999788237,0.15012,86853.0,86846.0,0.4078]
[1742999788472,0.15012,86853.0,86846.0,0.640091]
[1742999788672,0.15012,86853.0,86847.0,0.230288]
[1742999788872,0.3,86852.0,86847.0,0.230288]
[1742999789239,0.3,86852.0,86846.0,0.002]
[1742999789376,0.3,86852.0,86835.0,0.23032]
[1742999789377,0.3,86850.0,86841.0,0.230305]
[1742999789594,0.3,86850.0,86847.0,0.003]
[1742999790004,0.29870236,86850.0,86847.0,0.003]
[1742999790210,0.15012,86849.0,86843.0,0.241815]
[1742999790432,0.15012,86849.0,86844.0,0.027636]
[1742999790645,0.15012,86849.0,86841.0,0.230304]
[1742999790848,0.15012,86849.0,86846.0,0.003]
[1742999791046,0.073,86853.0,86846.0,0.003]
[1742999791247,0.073,86853.0,86839.0,0.230311]
[1742999791248,0.15008,86848.0,86839.0,0.230311]
[1742999791605,0.15008,86848.0,86846.0,0.003]
[1742999792046,0.3,86847.0,86846.0,0.003]
[1742999792229,0.3,86847.0,86846.0,0.002]
[1742999792438,0.3,86847.0,86841.0,0.24182]
[1742999792784,0.3,86847.0,86846.0,0.002]
[1742999793438,0.3,86847.0,86846.0,0.005]
[1742999793909,0.3003392,86847.0,86846.0,0.005]
[1742999794111,0.1504192,86847.0,86846.0,0.005]
[1742999794317,0.0003392,86847.0,86846.0,0.244806]
[1742999794550,0.0003392,86847.0,86846.0,0.3188015]
[1742999794777,0.1504192,86847.0,86846.0,0.74114235]
[1742999795269,0.1504192,86847.0,86846.0,0.74414235]
[1742999795478,0.1504192,86847.0,86846.0,0.67014685]
[1742999795702,0.1504192,86847.0,86846.0,0.66414685]
[1742999795905,0.1504192,86847.0,86846.0,0.67614685]
[1742999796362,0.0003392,86847.0,86846.0,0.67614685]
[1742999796777,0.01838034,86867.0,86846.0,0.67614685]
[1742999796778,0.0003392,86867.0,86859.0,0.24177]
[1742999796979,0.15045052,86860.0,86859.0,0.30631745]
[1742999797189,0.15045052,86860.0,86859.0,0.24177]
[1742999797390,0.16848887,86860.0,86859.0,0.24177]
[1742999798202,0.16848887,86860.0,86859.0,0.24477]
[1742999798473,0.0003392,86867.0,86859.0,0.24477]
[1742999798474,0.0003392,86867.0,86866.0,0.24175]
[1742999798654,0.0001694,86887.0,86866.0,0.24175]
[1742999798655,0.0001694,86887.0,86878.0,0.25625785]
[1742999798864,0.15004,86895.0,86887.0,0.011509]
[1742999799116,0.45004,86895.0,86894.0,0.241673]
[1742999799368,0.0001694,86907.0,86894.0,0.241673]
[1742999799369,0.0001694,86907.0,86895.0,0.011508]
[1742999799615,0.0001694,86907.0,86895.0,0.14030649]
[1742999799616,0.25004,86896.0,86895.0,0.14030649]
[1742999799874,0.15004,86896.0,86895.0,0.14030649]
[1742999800370,0.0001694,86907.0,86895.0,0.14030649]
[1742999800371,0.1503392,86900.0,86898.0,0.241661]
[1742999800616,0.00210878,86899.0,86898.0,0.85452185]
[1742999800856,0.00210878,86899.0,86898.0,0.96877949]
[1742999801114,0.10044381,86912.0,86911.0,0.25616685]